bitfinex/quotes_BTCUSD_20251226
["timestamp","ask_amount","ask_price","bid_price","bid_amount"]
[1766723849787,0.01125644,88838.0,88829.0,0.0002]
[1766723851284,0.01125669,88836.0,88829.0,0.0002]
[1766723852496,0.01125657,88837.0,88827.0,0.01125783]
[1766723852691,0.0002,88835.0,88824.0,0.01128]
[1766723852920,0.0002,88835.0,88823.0,0.01128]
[1766723853092,0.01355082,88833.0,88824.0,0.01125821]
[1766723853323,0.01355082,88833.0,88823.0,0.06757131]
[1766723853524,0.01355082,88833.0,88823.0,0.02253834]
[1766723853729,0.01125745,88830.0,88821.0,1.1e-07]
[1766723853935,0.01355082,88833.0,88821.0,0.01125859]
[1766723854260,0.01355082,88833.0,88822.0,0.01125847]
[1766723854415,0.01355082,88833.0,88823.0,0.01125834]
[1766723854600,0.02480789,88833.0,88823.0,0.01125834]
[1766723854800,0.02480789,88833.0,88821.0,0.06755111]
[1766723855024,0.02480789,88833.0,88823.0,0.01125834]
[1766723856758,0.02480789,88833.0,88822.0,0.01125847]
[1766723856957,0.02480789,88833.0,88823.0,0.01125834]
[1766723857656,0.02480789,88833.0,88822.0,0.01125847]
[1766723858096,0.0112572,88832.0,88822.0,0.01125847]
[1766723858295,0.0112572,88832.0,88822.0,0.13343847]
[1766723858460,0.02480789,88833.0,88823.0,0.01125834]
[1766723858665,0.0112572,88832.0,88822.0,0.12218]
[1766723858995,0.0112572,88832.0,88822.0,0.13343847]
[1766723859428,0.01125733,88831.0,88822.0,0.12218]
[1766723859775,0.01125783,88827.0,88822.0,0.12218]
[1766723859974,0.01125758,88829.0,88820.0,1.1e-07]
[1766723859975,0.01125771,88828.0,88820.0,1.1e-07]
[1766723860212,0.0113651,88828.0,88820.0,1.1e-07]
[1766723860413,0.0113651,88828.0,88816.0,0.12218]
[1766723860611,0.0113651,88828.0,88815.0,0.0002]
[1766723860612,0.00055,88816.0,88815.0,0.0002]
[1766723861024,0.01125847,88822.0,88815.0,0.0002]
[1766723861231,0.01125847,88838.0,88821.0,0.01125859]
[1766723861403,0.01125847,88838.0,88828.0,0.13343771]
[1766723861605,0.02253606,88841.0,88829.0,0.13343758]
[1766723861606,0.01125631,88839.0,88829.0,0.13343758]
[1766723861805,0.01125619,88840.0,88829.0,0.13343758]
[1766723862010,0.01125631,88839.0,88829.0,0.12218]
[1766723862237,0.01125619,88840.0,88829.0,0.13343758]
[1766723862645,0.01125631,88839.0,88829.0,0.13343758]
[1766723862826,0.01125619,88840.0,88829.0,0.13343758]
[1766723863005,0.02253606,88841.0,88830.0,0.01125745]
[1766723863409,0.01125619,88840.0,88830.0,0.01125745]
[1766723863613,0.02253606,88841.0,88830.0,0.01125745]
[1766723863842,0.02253606,88841.0,88831.0,0.01125733]
[1766723864172,0.01125619,88840.0,88830.0,0.11412]
[1766723864492,0.0675377,88840.0,88830.0,0.11412]
[1766723864692,0.01128,88841.0,88830.0,0.11412]
[1766723864897,0.01125657,88837.0,88830.0,0.11412]
[1766723866940,0.01145682,88835.0,88830.0,0.11412]
[1766723867152,0.01145682,88835.0,88830.0,0.11357]
[1766723867570,0.01145682,88835.0,88824.0,0.01125821]
[1766723867571,0.01125745,88830.0,88824.0,0.11896]
[1766723867774,0.01125745,88830.0,88818.0,0.13021897]
[1766723867985,0.01125758,88829.0,88818.0,0.13021897]
[1766723868189,0.01125758,88829.0,88819.0,0.01125885]
[1766723868366,0.01125758,88829.0,88818.0,0.13021897]
[1766723868785,0.01125758,88829.0,88819.0,0.01125885]
[1766723869191,0.01125771,88828.0,88818.0,0.13021897]
[1766723869711,0.01125783,88827.0,88818.0,0.11896]
[1766723869910,0.01125796,88826.0,88818.0,0.11906739]
[1766723870693,0.01125809,88825.0,88818.0,0.11906739]
[1766723870889,0.01125796,88826.0,88818.0,0.11906739]
[1766723871775,0.01125783,88827.0,88818.0,0.11906739]
[1766723872196,0.01125796,88826.0,88818.0,0.11906739]
[1766723872397,0.01125809,88825.0,88818.0,0.11906739]
[1766723873403,0.01125834,88823.0,88818.0,0.00010739]
[1766723873607,0.06754986,88824.0,88818.0,0.00010739]
[1766723873608,0.01125821,88824.0,88818.0,0.00010739]
[1766723874126,0.0675498,88824.0,88818.0,0.00010739]
[1766723874445,0.01125821,88824.0,88818.0,0.00010739]
[1766723874671,0.01125796,88826.0,88818.0,0.00010739]
[1766723875215,0.01125809,88825.0,88818.0,0.00010739]
[1766723875774,0.01125796,88826.0,88818.0,0.00010739]
[1766723875976,0.01125809,88825.0,88818.0,0.00010739]
[1766723876505,0.05629109,88824.0,88818.0,0.00010739]
[1766723876831,0.01125834,88823.0,88818.0,0.00010739]
[1766723877833,0.01125847,88822.0,88818.0,0.00010739]
[1766723878253,0.01125834,88823.0,88818.0,0.00010739]
[1766723878478,0.01125821,88824.0,88818.0,0.00010739]
[1766723879652,0.01125796,88826.0,88824.0,0.000549]
[1766723879865,0.01125796,88826.0,88818.0,0.00010739]
[1766723879866,0.01125771,88828.0,88818.0,0.00010739]
[1766723880071,0.01125733,88831.0,88819.0,0.11896]
[1766723880244,0.01125733,88831.0,88818.0,0.01136636]
[1766723880245,0.01125745,88830.0,88822.0,0.11896]
[1766723880760,0.03608802,88832.0,88830.0,0.000549]
[1766723880962,0.01125733,88831.0,88822.0,0.11896]
[1766723881358,0.01125733,88831.0,88822.0,0.13021847]
[1766723881584,0.01125733,88831.0,88822.0,0.11896]
[1766723881918,0.0225372,88832.0,88822.0,0.13021847]
[1766723882044,0.0225372,88832.0,88823.0,0.11896]
[1766723882243,0.0225372,88832.0,88823.0,0.13021834]
[1766723882601,0.01128,88832.0,88823.0,0.13021834]
[1766723882949,0.01128,88832.0,88824.0,0.13021821]
[1766723883399,0.01128,88832.0,88825.0,0.01125809]
[1766723883753,0.01128,88832.0,88826.0,0.11896]
[1766723884198,0.0225372,88832.0,88826.0,0.11896]
[1766723884597,0.01125733,88831.0,88826.0,0.11896]
[1766723884800,0.01125745,88830.0,88826.0,0.11896]
[1766723886100,0.0675455,88829.0,88826.0,0.11896]
[1766723886860,0.01125758,88829.0,88826.0,0.11896]
[1766723887082,0.01125745,88830.0,88826.0,0.11896]
[1766723887456,0.01125745,88830.0,88820.0,0.01125872]
[1766723887671,0.01125745,88830.0,88815.0,0.01128]
[1766723887881,0.00010745,88830.0,88815.0,0.01128]
[1766723888095,0.00010745,88830.0,88821.0,0.01125859]
[1766723888550,0.00010745,88830.0,88817.0,0.05629552]
[1766723889101,0.01125758,88829.0,88819.0,0.01125885]
[1766723890134,0.00010745,88830.0,88829.0,0.000549]
[1766723890747,0.00010745,88830.0,88821.0,0.01125859]
[1766723891301,0.0226449,88830.0,88820.0,0.01125872]
[1766723891715,0.02247871,88830.0,88820.0,0.01125872]
[1766723891914,0.01125758,88829.0,88820.0,0.01125872]
[1766723892119,0.01125758,88829.0,88819.0,0.01125885]
[1766723892319,0.01007181,88829.0,88819.0,0.01125885]
[1766723892954,0.01007181,88829.0,88819.0,0.13021885]
[1766723893746,0.01007181,88829.0,88820.0,0.01125872]
[1766723893960,0.01125758,88829.0,88819.0,0.13021885]
[1766723894601,0.01125771,88828.0,88819.0,0.11896]
[1766723895164,0.01125758,88829.0,88819.0,0.13021885]
[1766723895371,0.01125758,88829.0,88820.0,0.01125872]
[1766723895598,0.01122126,88830.0,88829.0,0.000549]
[1766723895771,0.01122126,88830.0,88825.0,0.11649]
[1766723896596,0.01067226,88830.0,88825.0,0.11649]
[1766723902734,0.02273682,88835.0,88825.0,0.12774809]
[1766723902930,0.01125695,88834.0,88825.0,0.12774809]
[1766723903156,0.01125695,88834.0,88825.0,0.11649]
[1766723904968,0.02281747,88835.0,88825.0,0.12774809]
[1766723906038,0.01125695,88834.0,88825.0,0.11649]
[1766723906247,0.00028065,88835.0,88834.0,0.00055]
[1766723906674,0.00028065,88835.0,88830.0,0.11649]
[1766723907097,0.01153747,88835.0,88830.0,0.11649]
[1766723907537,0.00028065,88835.0,88830.0,0.11649]
[1766723907743,0.01153747,88835.0,88830.0,0.11649]
[1766723908176,0.01125695,88834.0,88830.0,0.11649]
[1766723908381,0.01125707,88833.0,88830.0,0.115941]
[1766723908768,0.01125695,88834.0,88830.0,0.115941]
[1766723908980,0.01153747,88835.0,88830.0,0.115941]
[1766723909196,0.01125695,88834.0,88830.0,0.115941]
[1766723910047,0.01153747,88835.0,88830.0,0.115941]
[1766723910694,0.02253657,88837.0,88835.0,0.00026835]
[1766723910876,0.02253657,88837.0,88830.0,0.115941]
[1766723911348,0.02253657,88837.0,88827.0,0.01125783]
[1766723911514,0.0112572,88832.0,88824.0,0.01128]
[1766723911721,0.05628412,88835.0,88824.0,0.13910886]
[1766723911930,0.06754094,88835.0,88824.0,0.13910886]
[1766723912347,0.01125707,88833.0,88824.0,0.12785065]
[1766723912555,0.0112572,88832.0,88824.0,0.12785065]
[1766723912758,0.06754434,88831.0,88824.0,0.12785065]
[1766723912963,0.0112572,88832.0,88824.0,0.12785065]
[1766723913166,0.01125733,88831.0,88824.0,0.12785065]
[1766723913607,0.0112572,88832.0,88824.0,0.12785065]
[1766723914760,0.01125733,88831.0,88824.0,0.12785065]
[1766723915697,0.01125707,88833.0,88831.0,0.000268]
[1766723915921,0.0112572,88832.0,88824.0,0.11657065]
[1766723916345,0.01125733,88831.0,88824.0,0.11657065]
[1766723917934,0.05629068,88825.0,88813.0,0.01125961]
[1766723918160,0.000281,88824.0,88814.0,0.12777]
[1766723918378,0.000281,88824.0,88814.0,0.12797]
[1766723918535,0.01125809,88825.0,88814.0,0.12797]
[1766723918873,0.01125809,88825.0,88814.0,0.13922948]
[1766723919041,0.01125783,88827.0,88815.0,0.12774935]
[1766723919042,0.06754711,88827.0,88815.0,0.12774935]
[1766723919653,0.01125796,88826.0,88815.0,0.12774935]
[1766723920117,0.01125796,88826.0,88817.0,0.11649]
[1766723922343,0.01125758,88829.0,88826.0,0.000268]
[1766723922790,0.01125758,88829.0,88820.0,0.11843]
[1766723923241,0.01145695,88834.0,88824.0,0.01125821]
[1766723923410,0.05628602,88832.0,88829.0,0.000268]
[1766723923628,0.06754371,88832.0,88829.0,0.000268]
[1766723923834,0.01125733,88831.0,88823.0,0.11843]
[1766723924674,0.01125745,88830.0,88823.0,0.11843]
[1766723925094,0.01125733,88831.0,88823.0,0.11843]
[1766723925298,0.01125745,88830.0,88823.0,0.11843]
[1766723925995,0.01125758,88829.0,88823.0,0.11843]
[1766723926195,0.01125771,88828.0,88823.0,0.11843]
[1766723926940,0.01125758,88829.0,88823.0,0.11843]
[1766723927158,0.06754503,88830.0,88823.0,0.11843]
[1766723927369,0.01125758,88829.0,88823.0,0.11843]
[1766723927580,0.01125796,88826.0,88823.0,0.11843]
[1766723928139,0.01125783,88827.0,88823.0,0.11843]
[1766723928351,0.01125796,88826.0,88823.0,0.11843]
[1766723928553,0.0675481,88826.0,88823.0,0.11843]
[1766723929486,0.01125796,88826.0,88823.0,0.11843]
[1766723929650,0.01125783,88827.0,88823.0,0.11843]
[1766723929850,0.01125758,88829.0,88823.0,0.11843]
[1766723930658,0.01125745,88830.0,88823.0,0.11843]
[1766723930972,0.01125758,88829.0,88823.0,0.11843]
[1766723931181,0.06754304,88833.0,88823.0,0.11843]
[1766723931381,0.01125733,88831.0,88823.0,0.11843]
[1766723931579,0.01125745,88830.0,88823.0,0.11843]
[1766723931763,0.01125733,88831.0,88823.0,0.11843]
[1766723931964,0.01125682,88835.0,88831.0,0.000268]
[1766723932183,0.01125707,88833.0,88831.0,0.000268]
[1766723932362,0.01125707,88833.0,88823.0,0.12968834]
[1766723932750,0.0112572,88832.0,88823.0,0.11843]
[1766723933195,0.01125707,88833.0,88823.0,0.11843]
[1766723934023,0.01125707,88833.0,88823.0,0.12968834]
[1766723934520,0.0112572,88832.0,88823.0,0.11843]
[1766723935287,0.01125707,88833.0,88823.0,0.12968834]
[1766723935826,0.0112572,88832.0,88824.0,0.11583]
[1766723936025,0.01125707,88833.0,88824.0,0.11583]
[1766723936230,0.0112572,88832.0,88824.0,0.11583]
[1766723937294,0.01125707,88833.0,88824.0,0.11583]
[1766723938958,0.01125707,88833.0,88824.0,0.12708821]
[1766723939183,0.01125707,88833.0,88824.0,0.11583]
[1766723940502,0.01145695,88834.0,88824.0,0.11583]
[1766723941281,0.01145695,88834.0,88825.0,0.01125809]
[1766723941724,0.01145695,88834.0,88824.0,0.12708821]
[1766723942046,0.01125707,88833.0,88824.0,0.12708821]
[1766723942478,0.01145695,88834.0,88824.0,0.12708821]
[1766723942686,0.01145695,88834.0,88825.0,0.12708809]
[1766723942903,0.01145695,88834.0,88825.0,0.11583]
[1766723943113,0.0002,88834.0,88825.0,0.12708809]
[1766723943533,0.0002,88834.0,88826.0,0.01125796]
[1766723943707,0.01145695,88834.0,88826.0,0.11567905]
[1766723943906,0.01145695,88834.0,88823.0,0.0675497]
[1766723943907,0.01125568,88844.0,88834.0,0.116098]
[1766723944109,0.01055968,88843.0,88836.0,0.11583]
[1766723944431,0.0112553,88847.0,88838.0,0.11583]
[1766723944432,0.01125555,88845.0,88838.0,0.11583]
[1766723945131,0.01125543,88846.0,88838.0,0.11583]
[1766723945327,0.01125555,88845.0,88838.0,0.11583]
[1766723945534,0.01125568,88844.0,88838.0,0.115549]
[1766723945836,0.01125581,88843.0,88838.0,0.115549]
[1766723946710,0.01125555,88845.0,88838.0,0.115549]
[1766723947078,0.01125568,88844.0,88838.0,0.115549]
[1766723947298,0.01125657,88837.0,88827.0,0.11583]
[1766723947521,0.01125657,88837.0,88828.0,0.11583]
[1766723947742,0.01125657,88837.0,88828.0,0.12711]
[1766723947961,0.01125657,88837.0,88828.0,0.11583]
[1766723948177,0.01125669,88836.0,88828.0,0.11583]
[1766723948394,0.01125657,88837.0,88830.0,0.11583]
[1766723948582,0.01125644,88838.0,88830.0,0.11583]
[1766723948795,0.01125644,88838.0,88831.0,0.11583]
[1766723949014,0.01125657,88837.0,88831.0,0.12711]
[1766723949455,0.01125644,88838.0,88831.0,0.12711]
[1766723949902,0.01125657,88837.0,88831.0,0.12711]
[1766723951215,0.01125669,88836.0,88831.0,0.12711]
[1766723951847,0.01125631,88839.0,88831.0,0.12711]
[1766723952066,0.06753714,88840.0,88831.0,0.12711]
[1766723952286,0.01125644,88838.0,88831.0,0.12711]
[1766723952883,0.01125631,88839.0,88831.0,0.12711]
[1766723953714,0.01125619,88840.0,88831.0,0.12711]
[1766723953936,0.01125606,88841.0,88831.0,0.13836733]
[1766723954782,0.01125619,88840.0,88831.0,0.12711]
[1766723955192,0.01125619,88840.0,88831.0,0.13836733]
[1766723955385,0.01125619,88840.0,88831.0,0.12711]
[1766723956008,0.01125619,88840.0,88831.0,0.13836733]
[1766723956240,0.01125619,88840.0,88831.0,0.12711]
[1766723957248,0.01125619,88840.0,88831.0,0.13836733]
[1766723957440,0.01125619,88840.0,88831.0,0.12711]
[1766723958067,0.0675326,88846.0,88834.0,0.01125695]
[1766723958303,0.01125479,88851.0,88834.0,0.01125695]
[1766723958304,0.0112553,88847.0,88840.0,0.000549]
[1766723958487,0.01125517,88848.0,88840.0,0.000549]
[1766723958688,0.0112553,88847.0,88838.0,0.01125644]
[1766723958870,0.01125517,88848.0,88838.0,0.01125644]
[1766723959442,0.01134793,88848.0,88838.0,0.01125644]
[1766723959855,0.01134793,88848.0,88839.0,0.01125631]
[1766723960044,0.01134793,88848.0,88838.0,0.01125644]
[1766723960209,9.276e-05,88848.0,88838.0,0.01125644]
[1766723961008,0.01134793,88848.0,88836.0,0.056283]
[1766723961215,0.01134793,88848.0,88836.0,3e-06]
[1766723961410,0.01134793,88848.0,88831.0,3e-06]
[1766723961624,0.01134793,88848.0,88838.0,0.01125644]
[1766723962833,0.01134793,88848.0,88839.0,0.01125631]
[1766723963033,9.276e-05,88848.0,88838.0,0.01125644]
[1766723963438,0.01134793,88848.0,88838.0,0.01125644]
[1766723964831,0.0112553,88847.0,88837.0,0.01125657]
[1766723965507,0.0112553,88847.0,88838.0,0.01125644]
[1766723965722,0.0112553,88847.0,88837.0,0.01125657]
[1766723965907,0.01125543,88846.0,88836.0,0.056283]
[1766723966230,0.01125543,88846.0,88834.0,0.18672139]
[1766723966434,0.01125555,88845.0,88835.0,0.01125682]
[1766723967415,0.0112553,88847.0,88838.0,0.01125644]
[1766723967616,0.0112553,88847.0,88837.0,0.13043657]
[1766723967936,0.01125543,88846.0,88837.0,0.11918]
[1766723968131,0.0112553,88847.0,88837.0,0.11918]
[1766723968735,9.276e-05,88848.0,88837.0,0.13043657]
[1766723968931,0.01134793,88848.0,88837.0,0.13043657]
[1766723969097,0.01134793,88848.0,88838.0,0.01125644]
[1766723969500,0.0112553,88847.0,88837.0,0.13043657]
[1766723971130,9.276e-05,88848.0,88838.0,0.01125644]
[1766723971305,9.276e-05,88848.0,88840.0,0.13043619]
[1766723971636,9.276e-05,88848.0,88840.0,0.11918]
[1766723972240,0.01134793,88848.0,88840.0,0.11918]
[1766723972836,0.0112553,88847.0,88840.0,0.11918]
[1766723973041,0.01134793,88848.0,88840.0,0.11918]
[1766723973412,0.0112553,88847.0,88840.0,0.11918]
[1766723973614,0.01134793,88848.0,88840.0,0.11918]
[1766723973853,0.0112553,88847.0,88840.0,0.11918]
[1766723974571,0.01134793,88848.0,88840.0,0.11918]
[1766723974754,0.0112553,88847.0,88840.0,0.11918]
[1766723975272,0.01134793,88848.0,88840.0,0.11918]
[1766723975415,0.01125543,88846.0,88840.0,0.11918]
[1766723975619,0.01125555,88845.0,88840.0,0.11918]
[1766723976265,0.07901073,88849.0,88835.0,0.01125682]
[1766723976266,0.01125467,88852.0,88845.0,0.001099]
[1766723976440,0.01125479,88851.0,88846.0,0.11918]
[1766723976643,0.01125505,88849.0,88846.0,0.11918]
[1766723976869,0.01125492,88850.0,88846.0,0.11918]
[1766723978159,0.01125479,88851.0,88846.0,0.11918]
[1766723978355,0.01125467,88852.0,88846.0,0.11918]
[1766723979268,0.01125454,88853.0,88846.0,0.11918]
[1766723979434,0.02253441,88854.0,88846.0,0.11918]
[1766723979435,0.01128,88854.0,88853.0,0.000549]
[1766723980053,0.01128,88854.0,88848.0,0.13043517]
[1766723980796,0.010731,88854.0,88848.0,0.13043517]
[1766723981598,0.0355579,88861.0,88851.0,0.01125479]
[1766723981788,0.0355579,88861.0,88849.0,0.0573992]
[1766723981789,0.01128,88859.0,88852.0,0.11918]
[1766723981988,0.02253378,88859.0,88852.0,0.11918]
[1766723982172,0.01125391,88858.0,88852.0,0.11918]
[1766723982372,0.01125403,88857.0,88852.0,0.11918]
[1766723982805,0.01125416,88856.0,88852.0,0.11918]
[1766723983415,0.01125403,88857.0,88852.0,0.11918]
[1766723984827,0.01125416,88856.0,88852.0,0.11918]
[1766723985037,0.02253378,88859.0,88852.0,0.11918]
[1766723985252,0.01128,88859.0,88852.0,0.11918]
[1766723985447,0.02253378,88859.0,88852.0,0.11918]
[1766723985653,0.01128,88859.0,88852.0,0.11918]
[1766723987164,0.02253378,88859.0,88852.0,0.11918]
[1766723987370,0.01128,88859.0,88852.0,0.11918]
[1766723987776,0.02253378,88859.0,88852.0,0.11918]
[1766723988002,0.01128,88859.0,88852.0,0.11918]
[1766723988130,0.02253378,88859.0,88852.0,0.11918]
[1766723989845,0.01128,88859.0,88852.0,0.11918]
[1766723990042,0.01128,88859.0,88854.0,0.11412]
[1766723991342,0.01125264,88868.0,88849.0,0.01125505]
[1766723991343,0.00024462,88867.0,88859.0,0.12537378]
[1766723991549,0.00024462,88867.0,88860.0,0.11412]
[1766723991767,0.00024462,88867.0,88861.0,0.01125353]
[1766723991966,0.00024462,88867.0,88860.0,0.12537365]
[1766723992166,0.00024462,88867.0,88860.0,0.11412]
[1766723992368,0.00024462,88867.0,88859.0,0.01125378]
[1766723992369,0.00024462,88867.0,88862.0,0.11412]
[1766723992577,0.06751224,88873.0,88861.0,0.0011238]
[1766723992578,0.0112515,88877.0,88865.0,0.11412]
[1766723992781,0.00030747,88875.0,88864.0,0.11412]
[1766723992958,0.01125213,88872.0,88864.0,0.11412]
[1766723993155,0.02273112,88880.0,88867.0,0.11412]
[1766723993355,0.01125125,88879.0,88868.0,0.12537264]
[1766723993577,0.00024458,88875.0,88869.0,0.11412]
[1766723993993,0.00024458,88875.0,88871.0,0.11412]
[1766723994510,4.58e-06,88875.0,88869.0,0.11412]
[1766723995214,4.58e-06,88875.0,88869.0,0.113571]
[1766723995580,0.0002,88880.0,88869.0,0.113571]
[1766723995581,0.0002,88880.0,88869.0,0.11412]
[1766723995919,0.01125137,88878.0,88867.0,0.11412]
[1766723996144,0.01125163,88876.0,88867.0,0.11412]
[1766723996266,0.0112515,88877.0,88867.0,0.12537277]
[1766723996678,0.01125163,88876.0,88867.0,0.11412]
[1766723997111,0.01125175,88875.0,88867.0,0.11412]
[1766723997318,0.01125163,88876.0,88867.0,0.11412]
[1766723997491,0.01125175,88875.0,88867.0,0.11412]
[1766723997710,0.01125239,88870.0,88867.0,0.11412]
[1766723997910,0.01125226,88871.0,88867.0,0.11412]
[1766723998117,0.01125201,88873.0,88867.0,0.11412]
[1766723998330,0.01125226,88871.0,88867.0,0.11412]
[1766723998499,0.01125175,88875.0,88867.0,0.11412]
[1766723998704,0.01125163,88876.0,88867.0,0.11412]
[1766723998925,0.01145112,88880.0,88866.0,0.01125289]
[1766723999119,0.01145112,88880.0,88869.0,0.11412]
[1766723999320,0.01125137,88878.0,88869.0,0.11412]
[1766723999548,0.01125175,88875.0,88869.0,0.11412]
[1766724000019,0.05626169,88871.0,88866.0,0.00010747]
[1766724000150,0.00055,88869.0,88866.0,0.00010747]
[1766724000529,0.05626155,88871.0,88866.0,0.11422747]
[1766724000740,0.01125251,88869.0,88866.0,0.11422747]
[1766724001142,0.01125239,88870.0,88866.0,0.11367747]
[1766724001368,0.01125213,88872.0,88866.0,0.11367747]
[1766724001735,0.01125213,88872.0,88855.0,0.01125429]
[1766724001736,0.06751471,88870.0,88855.0,0.01125429]
[1766724001939,0.01125251,88869.0,88859.0,0.12537378]
[1766724002143,0.01125251,88869.0,88861.0,0.11412]
[1766724002297,0.01125239,88870.0,88861.0,0.11412]
[1766724002498,0.01125264,88868.0,88861.0,0.11412]
[1766724002711,0.01125277,88867.0,88861.0,0.11412]
[1766724002908,0.01125239,88870.0,88861.0,0.11412]
[1766724003518,0.05626143,88871.0,88861.0,0.11412]
[1766724003519,0.01125226,88871.0,88861.0,0.12537353]
[1766724003721,0.01125239,88870.0,88861.0,0.11412]
[1766724004151,0.01125213,88872.0,88861.0,0.12537353]
[1766724004355,0.01125226,88871.0,88862.0,0.0112534]
[1766724004552,0.01125213,88872.0,88863.0,0.11412]
[1766724004956,0.06751345,88872.0,88863.0,0.11412]
[1766724005315,0.01125264,88868.0,88863.0,0.11412]
[1766724005613,0.01125251,88869.0,88863.0,0.11412]
[1766724005915,0.01125239,88870.0,88863.0,0.11412]
[1766724006275,0.01125251,88869.0,88863.0,0.11412]
[1766724006591,0.01125239,88870.0,88863.0,0.11412]
[1766724006786,0.01125251,88869.0,88863.0,0.11412]
[1766724006988,0.01125264,88868.0,88863.0,0.11412]
[1766724007366,0.01125239,88870.0,88863.0,0.11412]
[1766724007591,0.05626193,88871.0,88861.0,0.11412]
[1766724008207,0.01125239,88870.0,88861.0,0.11412]
[1766724009155,0.01125264,88868.0,88861.0,0.11412]
[1766724009353,0.01125277,88867.0,88861.0,0.11412]
[1766724009536,0.01125264,88868.0,88861.0,0.11412]
[1766724009730,0.01125251,88869.0,88861.0,0.11412]
[1766724010276,0.01125239,88870.0,88861.0,0.11412]
[1766724010885,0.01125226,88871.0,88861.0,0.12537353]
[1766724011096,0.01125188,88874.0,88862.0,0.0112534]
[1766724011325,0.01125188,88874.0,88860.0,0.06752145]
[1766724011326,0.02066469,88881.0,88873.0,0.11412]
[1766724011541,3.7e-06,88882.0,88880.0,0.11421259]
[1766724011770,0.02253049,88885.0,88880.0,0.11412]
[1766724011962,0.01125074,88883.0,88880.0,0.11412]
[1766724012129,0.01125061,88884.0,88880.0,0.11390392]
[1766724013028,0.06750241,88886.0,88884.0,0.000442]
[1766724013424,0.01125074,88883.0,88880.0,0.11390392]
[1766724013631,7.4e-07,88883.0,88880.0,0.11390392]
[1766724014428,0.01124998,88889.0,88878.0,0.11462]
[1766724014633,0.01125011,88888.0,88878.0,0.11462]
[1766724015028,0.01125011,88888.0,88878.0,0.12587137]
[1766724015237,0.2249623,88904.0,88888.0,0.000442]
[1766724015552,0.2249623,88904.0,88881.0,0.01125099]
[1766724015553,0.01124922,88895.0,88889.0,0.11462]
[1766724015723,0.0562454,88897.0,88889.0,0.11462]
[1766724015724,0.01124897,88897.0,88889.0,0.11462]
[1766724015918,0.0002,88919.0,88896.0,0.11462]
[1766724016161,0.01124783,88906.0,88900.0,0.11462]
[1766724016368,0.01124758,88908.0,88900.0,0.11462]
[1766724016621,0.0112477,88907.0,88900.0,0.11462]
[1766724017009,0.01124796,88905.0,88900.0,0.11462]
[1766724017387,0.01180561,88909.0,88905.0,0.000442]
[1766724017762,0.00055816,88909.0,88904.0,0.11462]
[1766724018381,0.0112477,88907.0,88904.0,0.114513]
[1766724018793,0.01180561,88909.0,88904.0,0.114513]
[1766724019289,0.01124758,88908.0,88904.0,0.114513]
[1766724020499,0.0112477,88907.0,88904.0,0.0974781]
[1766724020700,0.01124796,88905.0,88898.0,0.11462]
[1766724020902,0.01124796,88905.0,88897.0,0.01128]
[1766724020903,0.0112491,88896.0,88891.0,0.11462]
[1766724021082,0.01124935,88894.0,88891.0,0.11462]
[1766724021283,0.06749194,88900.0,88894.0,0.000549]
[1766724021502,0.01124859,88900.0,88891.0,0.11462]
[1766724021710,0.01124872,88899.0,88891.0,0.11462]
[1766724022316,0.06749066,88902.0,88899.0,0.000549]
[1766724022472,0.01124859,88900.0,88891.0,0.11462]
[1766724022678,0.01201278,88900.0,88891.0,0.11462]
[1766724022929,0.01124872,88899.0,88891.0,0.11462]
[1766724023126,0.00051968,88892.0,88891.0,0.11462]
[1766724023323,6.8e-07,88892.0,88889.0,0.11462]
[1766724023525,0.01124884,88898.0,88889.0,0.11462]
[1766724023680,0.01124859,88900.0,88889.0,0.11462]
[1766724023681,0.01124859,88900.0,88889.0,0.01124998]
[1766724023883,0.01124859,88900.0,88888.0,0.02253011]
[1766724023884,0.01124872,88899.0,88890.0,0.11462]
[1766724024084,0.01124859,88900.0,88890.0,0.11462]
[1766724024279,0.01124897,88897.0,88890.0,0.11462]
[1766724024480,0.01124884,88898.0,88890.0,0.11462]
[1766724024913,0.01124872,88899.0,88890.0,0.11462]
[1766724025432,0.01124859,88900.0,88890.0,0.11462]
[1766724026009,0.01124846,88901.0,88890.0,0.12586985]
[1766724026199,0.02252834,88902.0,88892.0,0.11462]
[1766724026820,0.01124846,88901.0,88892.0,0.11462]
[1766724027388,0.05623629,88911.0,88895.0,0.01124922]
[1766724027587,0.01128,88908.0,88899.0,0.12586872]
[1766724027783,0.01128,88908.0,88900.0,0.01124859]
[1766724028037,0.01128,88908.0,88899.0,0.11462]
[1766724028200,0.01128,88908.0,88900.0,0.01124859]
[1766724028382,0.01128,88908.0,88899.0,0.12586872]
[1766724028811,0.01128,88908.0,88901.0,0.01124846]
[1766724029223,0.01128,88908.0,88900.0,0.01124859]
[1766724029224,0.00030624,88902.0,88900.0,0.01124859]
[1766724029427,0.00030624,88902.0,88899.0,0.12586872]
[1766724029428,0.01128,88908.0,88899.0,0.12586872]
[1766724029641,0.01128,88908.0,88900.0,0.01124859]
[1766724029848,0.01128,88908.0,88901.0,0.01124846]
[1766724030062,0.01128,88907.0,88901.0,0.01124846]
[1766724030261,0.01128,88907.0,88900.0,0.01124859]
[1766724030417,0.01128,88907.0,88899.0,0.12586872]
[1766724030634,0.01128,88907.0,88900.0,0.01124859]
[1766724030858,0.01128,88907.0,88899.0,0.12586872]
[1766724031293,0.01128,88907.0,88899.0,0.11462]
[1766724031494,0.01128,88907.0,88901.0,0.01124846]
[1766724031739,0.01128,88907.0,88899.0,0.11462]
[1766724032065,0.01128,88907.0,88899.0,0.12586872]
[1766724032482,0.01128,88907.0,88899.0,0.11462]
[1766724032697,0.01128,88907.0,88899.0,0.12586872]
[1766724032965,0.01128,88906.0,88899.0,0.114101]
[1766724033152,0.01128,88906.0,88897.0,0.01124897]
[1766724033352,0.01128,88906.0,88898.0,0.01124884]
[1766724033579,0.01128,88906.0,88897.0,0.01124897]
[1766724033761,0.01128,88906.0,88898.0,0.01124884]
[1766724034170,0.01128,88906.0,88899.0,0.01124872]
[1766724034382,0.01128,88906.0,88898.0,0.01124884]
[1766724034554,0.00027567,88901.0,88900.0,0.01124859]
[1766724034741,6.7e-07,88901.0,88899.0,0.01124872]
[1766724034941,0.01128,88906.0,88898.0,0.01124884]
[1766724035172,0.01180561,88909.0,88898.0,0.01124884]
[1766724035173,0.01128,88905.0,88900.0,0.01124859]
[1766724035382,0.011006,88905.0,88900.0,0.01124859]
[1766724035780,0.011006,88905.0,88901.0,0.01124846]
[1766724035984,0.011006,88905.0,88902.0,0.01124834]
[1766724036184,0.011006,88905.0,88901.0,0.01124846]
[1766724036385,0.011006,88905.0,88900.0,0.01124859]